bitfinex/quotes_BTCUSD_20220307
["timestamp","ask_amount","ask_price","bid_price","bid_amount"]
[1646644967771,0.00022895,38333.0,38328.0,0.02028071]
[1646644968772,0.00141261,38337.0,38328.0,0.02028071]
[1646644968971,0.00141261,38337.0,38328.0,0.23517395]
[1646644968972,0.00022895,38332.0,38328.0,0.23517395]
[1646644969172,0.00022895,38332.0,38326.0,0.02608]
[1646644969973,0.00141261,38337.0,38326.0,0.02608]
[1646644970173,0.00141261,38337.0,38325.0,0.37608]
[1646644970174,0.00022896,38331.0,38325.0,0.37608]
[1646644970373,0.00022896,38331.0,38325.0,0.05]
[1646644970776,0.00022896,38331.0,38324.0,0.21582515]
[1646644971209,0.00141261,38337.0,38324.0,0.21582515]
[1646644971413,0.00022896,38330.0,38328.0,0.22493357]
[1646644971611,0.00022896,38330.0,38324.0,0.21582515]
[1646644972414,0.00141261,38337.0,38324.0,0.21582515]
[1646644972609,0.00141261,38337.0,38327.0,0.24428966]
[1646644972610,0.00022896,38329.0,38327.0,0.24428966]
[1646644972810,0.00022896,38329.0,38327.0,0.05]
[1646644973010,0.00022896,38329.0,38326.0,0.06023684]
[1646644973410,0.00141261,38337.0,38325.0,0.05]
[1646644973610,0.1383,38339.0,38325.0,0.35]
[1646644973812,0.00022896,38329.0,38326.0,0.2798124]
[1646644974010,0.00022896,38329.0,38325.0,0.05]
[1646644974211,0.00022896,38329.0,38324.0,0.21582515]
[1646644974411,0.00022896,38329.0,38324.0,1.03800515]
[1646644974610,0.1383,38339.0,38325.0,0.06985045]
[1646644974810,0.1383,38339.0,38324.0,0.51582515]
[1646644975067,0.00022896,38328.0,38324.0,0.51582515]
[1646644975265,0.00022896,38328.0,38324.0,0.21582515]
[1646644975868,0.1383,38339.0,38324.0,0.21582515]
[1646644976066,0.00022897,38328.0,38325.0,0.3]
[1646644976267,0.00022897,38328.0,38324.0,0.21582515]
[1646644977069,0.1383,38339.0,38324.0,0.24190515]
[1646644977269,0.1383,38339.0,38329.0,0.29455507]
[1646644977670,0.1383,38339.0,38329.0,0.34455507]
[1646644978467,0.00022894,38336.0,38329.0,0.34455507]
[1646644979310,0.00022894,38336.0,38325.0,0.05]
[1646644979510,0.1383,38339.0,38325.0,0.05]
[1646644979713,0.00022895,38334.0,38324.0,0.35792515]
[1646644980711,0.1383,38339.0,38324.0,0.35792515]
[1646644980911,0.00022896,38331.0,38324.0,0.35692515]
[1646644981212,0.00022896,38331.0,38324.0,0.30692515]
[1646644981912,0.1383,38339.0,38325.0,0.05380106]
[1646644982112,0.00022896,38329.0,38326.0,0.3]
[1646644982312,0.00022896,38329.0,38326.0,0.05]
[1646644982762,0.00022896,38329.0,38325.0,0.05380106]
[1646644983165,0.1383,38339.0,38324.0,0.65692515]
[1646644983363,0.00022896,38329.0,38324.0,0.65692515]
[1646644983562,0.00022896,38329.0,38324.0,0.35692515]
[1646644983763,0.00022896,38329.0,38324.0,0.65692515]
[1646644984362,0.13999927,38339.0,38325.0,0.05915415]
[1646644984565,0.13999927,38339.0,38330.0,0.24019978]
[1646644985766,0.00022894,38336.0,38330.0,0.24019978]
[1646644985964,0.00022894,38336.0,38324.0,0.65692515]
[1646644986607,0.13999927,38339.0,38324.0,0.65692515]
[1646644986908,0.00022895,38332.0,38326.0,0.2741165]
[1646644987108,0.00022895,38332.0,38324.0,0.65692515]
[1646644987508,0.00022895,38332.0,38325.0,0.1]
[1646644987707,0.00022895,38332.0,38326.0,0.3]
[1646644988007,0.13999927,38339.0,38329.0,0.27306459]
[1646644988210,0.00022896,38330.0,38326.0,0.35]
[1646644988407,0.00022896,38330.0,38326.0,0.05]
[1646644988807,0.00022896,38330.0,38325.0,0.45]
[1646644989106,0.00169307,38336.0,38325.0,0.45]
[1646644989308,0.00022896,38330.0,38325.0,1.27218]
[1646644989509,0.00022896,38330.0,38325.0,0.45]
[1646644989972,0.00022896,38330.0,38325.0,0.44992106]
[1646644990378,0.00169307,38336.0,38325.0,0.44992106]
[1646644990574,0.00022896,38329.0,38325.0,0.44992106]
[1646644990776,0.00022896,38329.0,38325.0,0.14992106]
[1646644991173,0.00022896,38329.0,38325.0,0.44992106]
[1646644991574,0.00169307,38336.0,38325.0,0.44992106]
[1646644991775,0.00022896,38329.0,38325.0,0.44992106]
[1646644991974,0.00022896,38329.0,38325.0,0.14992106]
[1646644992473,0.00022896,38329.0,38325.0,0.44992106]
[1646644992674,0.00169307,38336.0,38325.0,0.44992106]
[1646644993074,0.00022896,38329.0,38325.0,0.44992106]
[1646644993278,0.00022896,38329.0,38325.0,0.14992106]
[1646644993816,0.1383,38339.0,38325.0,0.17600106]
[1646644994017,0.1383,38339.0,38326.0,0.3]
[1646644994218,0.00022896,38329.0,38326.0,0.3]
[1646644994418,0.00022896,38329.0,38325.0,0.14992106]
[1646644995021,0.1383,38339.0,38325.0,0.14992106]
[1646644995218,0.1383,38339.0,38328.0,0.24622977]
[1646644995420,0.00022896,38329.0,38328.0,0.24622977]
[1646644995823,0.00022896,38329.0,38325.0,0.44992106]
[1646644996219,0.1383,38339.0,38325.0,0.44992106]
[1646644996622,0.00022896,38329.0,38325.0,0.44992106]
[1646644996920,0.00022896,38329.0,38325.0,0.14992106]
[1646644997474,0.1383,38339.0,38325.0,0.44992106]
[1646644997676,0.00022896,38329.0,38325.0,0.44992106]
[1646644997875,0.00022896,38329.0,38325.0,0.14992106]
[1646644998074,0.00022896,38329.0,38325.0,0.44992106]
[1646644998679,0.1383,38339.0,38325.0,0.44992106]
[1646644998876,0.00022896,38329.0,38325.0,0.44992106]
[1646644999076,0.00022896,38329.0,38325.0,0.14992106]
[1646644999276,0.00022896,38329.0,38325.0,0.44992106]
[1646644999877,0.1383,38339.0,38325.0,0.44992106]
[1646645000080,0.00022896,38329.0,38325.0,0.44992106]
[1646645000280,0.00022896,38329.0,38325.0,0.14992106]
[1646645000479,0.00022896,38329.0,38325.0,0.44992106]
[1646645000880,0.00022896,38329.0,38326.0,0.82218]
[1646645001084,0.0032,38331.0,38327.0,0.3]
[1646645001313,0.00022896,38329.0,38327.0,1.1461]
[1646645001513,0.00022896,38329.0,38328.0,0.5231211]
[1646645001712,0.00022896,38329.0,38328.0,0.3]
[1646645001911,0.00022896,38329.0,38327.0,0.8461]
[1646645002311,0.0032,38331.0,38327.0,0.8461]
[1646645002512,0.00022896,38330.0,38327.0,0.8461]
[1646645002715,0.00022896,38330.0,38328.0,0.25197726]
[1646645003514,0.0032,38331.0,38328.0,0.25197726]
[1646645003716,0.00342896,38331.0,38328.0,0.25197726]
[1646645004815,0.0032,38331.0,38328.0,0.25197726]
[1646645005061,0.00342896,38331.0,38328.0,0.25197726]
[1646645005463,0.00342896,38331.0,38327.0,0.05]
[1646645005661,0.00342896,38331.0,38325.0,0.15]
[1646645005961,0.0032,38331.0,38324.0,0.35692515]
[1646645006160,0.00342896,38331.0,38324.0,0.35692515]
[1646645006760,0.00342896,38331.0,38324.0,0.60885915]
[1646645007162,0.0032,38331.0,38324.0,0.46775915]
[1646645007361,0.00022896,38329.0,38324.0,0.46775915]
[1646645008361,0.0032,38331.0,38324.0,0.46775915]
[1646645008563,0.00022896,38328.0,38324.0,0.21582515]
[1646645008812,0.00022896,38328.0,38324.0,0.31582515]
[1646645009612,0.0032,38331.0,38324.0,0.31582515]
[1646645009813,0.00022897,38328.0,38327.0,0.2521349]
[1646645010015,0.00022897,38328.0,38327.0,0.05]
[1646645010212,0.00022897,38328.0,38324.0,0.31582515]
[1646645010816,0.0032,38331.0,38324.0,0.31582515]
[1646645011015,0.00022897,38328.0,38324.0,0.31582515]
[1646645012016,0.0032,38331.0,38324.0,0.31582515]
[1646645012217,0.00022897,38328.0,38324.0,0.31582515]
[1646645012662,0.00022897,38328.0,38324.0,0.3157383]
[1646645013063,0.0032,38331.0,38324.0,0.3157383]
[1646645013463,0.00022897,38328.0,38324.0,0.3157383]
[1646645014168,0.00022897,38328.0,38324.0,0.3809963]
[1646645015065,0.00022897,38328.0,38324.0,0.3157383]
[1646645015564,0.0032,38331.0,38324.0,0.3157383]
[1646645015766,0.00022897,38328.0,38324.0,0.3157383]
[1646645016619,0.0032,38331.0,38325.0,1.11894629]
[1646645016821,0.0032,38331.0,38327.0,0.82218]
[1646645017036,0.3,38338.0,38331.0,0.00617103]
[1646645017215,0.1383,38339.0,38331.0,0.00617103]
[1646645018819,0.3,38338.0,38331.0,0.00617103]
[1646645020464,0.25,38333.0,38331.0,0.00617103]
[1646645020663,0.3522,38332.0,38331.0,0.00617103]
[1646645020865,0.0522,38332.0,38331.0,0.00617103]
[1646645021466,0.3522,38332.0,38331.0,0.00617103]
[1646645021664,0.0522,38332.0,38331.0,0.00617103]
[1646645022866,0.3522,38332.0,38331.0,0.00617103]
[1646645025215,0.0522,38332.0,38331.0,0.00617103]
[1646645026217,0.1022,38332.0,38331.0,0.00617103]
[1646645026618,0.05,38332.0,38331.0,0.00617103]
[1646645026817,0.05022956,38333.0,38331.0,0.00617103]
[1646645027017,0.04522956,38333.0,38331.0,0.00617103]
[1646645027464,0.045,38333.0,38331.0,0.00617103]
[1646645027664,0.3,38332.0,38331.0,0.00617103]
[1646645027868,0.295,38333.0,38331.0,0.00617103]
[1646645028067,0.00022956,38334.0,38331.0,0.00617103]
[1646645028271,0.30022956,38334.0,38331.0,0.00617103]
[1646645028665,0.3,38334.0,38331.0,0.00617103]
[1646645029066,0.30022956,38334.0,38331.0,0.00617103]
[1646645029870,0.3,38334.0,38331.0,0.00617103]
[1646645030067,0.30022956,38334.0,38331.0,0.00617103]
[1646645030871,0.00022956,38334.0,38331.0,0.00617103]
[1646645031068,0.75,38336.0,38331.0,0.00617103]
[1646645031321,0.00022956,38334.0,38331.0,0.00617103]
[1646645032321,0.75,38336.0,38331.0,0.00617103]
[1646645032524,0.00022956,38334.0,38331.0,0.00617103]
[1646645033524,0.77608,38336.0,38331.0,0.00617103]
[1646645033724,0.00022956,38334.0,38331.0,0.00617103]
[1646645034724,0.77608,38336.0,38331.0,0.00617103]
[1646645034964,0.00022956,38334.0,38331.0,0.00617103]
[1646645035963,0.82608,38336.0,38331.0,0.00617103]
[1646645036165,0.45,38333.0,38331.0,0.00617103]
[1646645036363,0.3,38332.0,38331.0,0.00617103]
[1646645039318,0.45022956,38333.0,38331.0,0.00617103]
[1646645039516,0.3,38332.0,38331.0,0.00617103]
[1646645040921,0.3522,38332.0,38331.0,0.00617103]
[1646645046421,0.85,38331.0,38326.0,0.130527]
[1646645046618,0.85,38331.0,38319.0,0.130541]
[1646645046619,0.2,38327.0,38319.0,0.130541]
[1646645046817,0.2,38325.0,38319.0,0.130541]
[1646645047019,0.0522,38324.0,38319.0,0.130541]
[1646645047218,0.25,38322.0,38319.0,0.130541]
[1646645047418,0.0522,38321.0,38319.0,0.130541]
[1646645048021,0.2522,38321.0,38319.0,0.130541]
[1646645048921,0.2522,38321.0,38310.0,0.19610567]
[1646645048922,0.3,38320.0,38310.0,0.19610567]
[1646645049122,0.45,38318.0,38305.0,0.3219]
[1646645049320,0.37828,38317.0,38310.0,0.00022967]
[1646645049521,0.07828,38317.0,38310.0,0.00022967]
[1646645049975,0.05753171,38313.0,38310.0,0.00022967]
[1646645050478,0.0522,38313.0,38310.0,0.00022965]
[1646645051479,0.0522,38313.0,38306.0,0.065307]
[1646645051679,0.0522,38313.0,38310.0,0.00022964]
[1646645052279,0.0522,38313.0,38310.0,0.13082364]
[1646645052681,0.1405,38316.0,38313.0,0.1044]
[1646645052881,0.0522,38317.0,38313.0,0.1044]
[1646645053385,0.25,38316.0,38313.0,0.1044]
[1646645053819,0.0522,38317.0,38313.0,0.1044]
[1646645054219,0.45,38316.0,38313.0,0.169696]
[1646645054520,0.0522,38317.0,38313.0,0.169696]
[1646645055319,0.45,38316.0,38313.0,0.169696]
[1646645057322,0.55,38320.0,38313.0,0.169696]
[1646645058174,0.45,38318.0,38313.0,0.169696]
[1646645058375,0.1,38320.0,38313.0,0.169696]
[1646645058979,0.55,38320.0,38313.0,0.169696]
[1646645060177,0.3905,38323.0,38316.0,0.19503888]
[1646645060380,0.1405,38323.0,38318.0,0.130565]
[1646645060876,1.27288,38327.0,38318.0,0.130565]
[1646645061081,0.80258,38327.0,38318.0,0.130565]
[1646645061321,0.07044706,38324.0,38319.0,0.25177027]
[1646645061522,0.80258,38327.0,38321.0,0.065277]
[1646645061722,0.1,38326.0,38321.0,0.065277]
[1646645062320,0.02608,38327.0,38321.0,0.065277]
[1646645062721,0.12608,38327.0,38321.0,0.065277]
[1646645063523,0.19308827,38327.0,38321.0,0.065277]
[1646645064724,0.54308827,38327.0,38321.0,0.065277]
[1646645064967,0.34308827,38327.0,38321.0,0.065277]
[1646645065173,0.1,38326.0,38321.0,0.065277]
[1646645066375,0.19308827,38327.0,38321.0,0.065277]
[1646645066571,0.25,38323.0,38321.0,0.065277]
[1646645067572,0.06700827,38327.0,38321.0,0.065277]
[1646645067772,0.36700827,38327.0,38321.0,0.065277]
[1646645068170,0.1,38326.0,38321.0,0.065277]
[1646645070214,0.3,38325.0,38321.0,0.065277]
[1646645070414,0.25,38323.0,38321.0,0.065277]
[1646645070714,0.3,38322.0,38318.0,0.180565]
[1646645071514,0.3,38325.0,38318.0,0.180565]
[1646645071717,0.25,38323.0,38318.0,0.180565]
[1646645071915,0.55,38323.0,38318.0,0.180565]
[1646645072116,0.25,38323.0,38318.0,0.180565]
[1646645073192,0.25,38323.0,38318.0,0.130565]
[1646645073594,0.3,38325.0,38318.0,0.130565]
[1646645073995,0.32608,38325.0,38318.0,0.130565]
[1646645074195,0.25,38323.0,38314.0,0.21282884]
[1646645074397,0.3,38322.0,38314.0,0.26282884]
[1646645074596,0.32608,38322.0,38314.0,0.26282884]
[1646645075095,0.3,38322.0,38314.0,0.26282884]
[1646645075698,0.3,38322.0,38314.0,0.25782884]
[1646645075896,0.32608,38322.0,38314.0,0.045]
[1646645076098,0.45,38318.0,38313.0,0.182726]
[1646645076325,0.0522,38317.0,38313.0,0.182726]
[1646645077327,0.1521,38317.0,38313.0,0.182726]
[1646645077526,0.0522,38317.0,38313.0,0.232726]
[1646645078326,0.3522,38317.0,38313.0,0.232726]
[1646645079130,0.2,38315.0,38313.0,0.1044]
[1646645079329,0.0522,38314.0,38313.0,0.1044]
[1646645079974,0.2522,38314.0,38313.0,0.1044]
[1646645084319,0.0522,38314.0,38313.0,0.1044]
[1646645084519,0.2522,38314.0,38313.0,0.1044]
[1646645085519,0.0522,38314.0,38313.0,0.1044]
[1646645086420,0.2522,38314.0,38313.0,0.1044]
[1646645087472,0.0522,38314.0,38313.0,0.1044]
[1646645088476,0.3522,38314.0,38313.0,0.1044]
[1646645088675,0.1522,38314.0,38313.0,0.1044]
[1646645089276,0.6022,38314.0,38313.0,0.1044]
[1646645090074,0.1522,38314.0,38313.0,0.1044]
[1646645090275,0.0522,38314.0,38313.0,0.1044]
[1646645090978,0.5022,38314.0,38313.0,0.1044]
[1646645091224,0.6022,38314.0,38313.0,0.1044]
[1646645091825,0.1522,38314.0,38313.0,0.1044]
[1646645092023,0.15,38314.0,38313.0,0.1044]
[1646645092429,0.05,38314.0,38313.0,0.0994]
[1646645092624,0.45,38314.0,38313.0,0.0994]
[1646645092825,0.6,38314.0,38313.0,0.0994]
[1646645093024,0.15,38314.0,38313.0,0.0994]
[1646645094025,0.05,38314.0,38313.0,0.0994]
[1646645094325,0.45,38314.0,38313.0,0.0994]
[1646645094524,0.2,38314.0,38313.0,0.0994]
[1646645094725,0.3,38314.0,38313.0,0.0994]
[1646645095373,0.55,38314.0,38313.0,0.0994]
[1646645095772,0.1,38314.0,38313.0,0.0994]
[1646645095974,0.55,38314.0,38313.0,0.0994]
[1646645100129,0.1,38314.0,38313.0,0.0994]
[1646645100326,0.45,38316.0,38313.0,0.0994]
[1646645100729,0.1,38315.0,38313.0,0.0994]
[1646645101628,0.1,38315.0,38313.0,0.0146263]
[1646645102229,0.2,38317.0,38313.0,0.0146263]
[1646645102675,0.3,38317.0,38313.0,0.0146263]
[1646645103374,0.3,38321.0,38313.0,0.0146263]
[1646645103375,0.2,38321.0,38313.0,0.0146263]
[1646645103575,0.2,38321.0,38314.0,0.130566]
[1646645103975,0.2,38321.0,38314.0,0.430566]
[1646645104374,0.2,38321.0,38317.0,0.2048411]
[1646645104578,0.2,38321.0,38314.0,0.3]
[1646645104775,0.2,38321.0,38313.0,0.0146263]
[1646645105575,0.2,38318.0,38313.0,0.0146263]
[1646645106244,0.19930461,38318.0,38313.0,0.0146263]
[1646645108044,0.35150461,38321.0,38313.0,0.0146263]
[1646645108244,0.29930461,38321.0,38313.0,0.0146263]
[1646645110278,0.1,38321.0,38313.0,0.0146263]
[1646645110482,0.19930461,38318.0,38313.0,0.0146263]
[1646645112879,0.136,38322.0,38313.0,0.0146263]
[1646645113081,0.1,38321.0,38313.0,0.0146263]
[1646645114337,0.29930461,38321.0,38313.0,0.0146263]
[1646645114536,0.59930461,38321.0,38313.0,0.0146263]
[1646645114737,0.19930461,38318.0,38313.0,0.0146263]
[1646645116137,0.25,38319.0,38313.0,0.0146263]
[1646645116337,0.19930461,38318.0,38313.0,0.0142353]
[1646645116739,0.0522,38320.0,38313.0,0.0142353]
[1646645117039,0.0522,38320.0,38314.0,0.20915053]
[1646645118274,0.29930461,38321.0,38314.0,0.20915053]
[1646645118771,0.19930461,38318.0,38313.0,0.0142353]
[1646645125981,0.49930461,38318.0,38313.0,0.0142353]
[1646645126180,0.1022,38317.0,38313.0,0.0142353]
[1646645126376,0.19930461,38314.0,38313.0,0.0142353]
[1646645126775,0.49930461,38314.0,38312.0,0.00016188]
[1646645126976,0.4090654,38313.0,38312.0,0.00016188]
[1646645127375,0.1090654,38313.0,38312.0,0.00016188]
[1646645127976,0.0522,38313.0,38312.0,0.00016188]
[1646645129031,0.11904904,38313.0,38312.0,0.00016188]
[1646645130031,0.41904904,38313.0,38312.0,0.00016188]
[1646645130634,0.3522,38313.0,38312.0,0.00016188]
[1646645131237,0.4022,38313.0,38312.0,0.00016188]
[1646645132136,0.3522,38313.0,38312.0,0.00016188]
[1646645133277,0.0522,38313.0,38312.0,0.00016188]
[1646645137129,0.1365,38316.0,38312.0,0.00016188]
[1646645137326,0.1365,38316.0,38313.0,0.1566]
[1646645137527,0.1,38318.0,38313.0,0.1566]
[1646645137726,0.1424,38323.0,38313.0,0.1566]
[1646645137927,0.19930461,38316.0,38313.0,0.1566]
[1646645138127,0.3,38315.0,38313.0,0.1566]
[1646645138326,0.02608,38317.0,38313.0,0.1566]
[1646645138327,0.50150461,38314.0,38313.0,0.1566]
[1646645138525,0.3022,38314.0,38313.0,0.1566]
[1646645138726,0.50150461,38314.0,38313.0,0.1566]
[1646645139032,0.55455013,38314.0,38313.0,0.15653327]
[1646645139228,0.50150461,38314.0,38313.0,0.15653327]
[1646645139429,0.0522,38314.0,38313.0,0.15653327]
[1646645141976,0.50150461,38314.0,38313.0,0.15653327]
[1646645143580,0.90150461,38314.0,38313.0,0.15653327]
[1646645144027,0.95150461,38314.0,38313.0,0.15653327]
[1646645145029,1.05140461,38314.0,38313.0,0.15653327]
[1646645145433,0.84330485,38312.0,38310.0,0.00021351]
[1646645145627,0.3522,38311.0,38310.0,0.00021351]
[1646645145828,0.65150461,38311.0,38310.0,0.00021351]
[1646645146028,0.60150461,38311.0,38310.0,0.00021351]
[1646645146326,0.60150461,38311.0,38302.0,0.00085421]
[1646645146526,0.60150461,38311.0,38303.0,0.21315934]
[1646645146731,0.60150461,38311.0,38309.0,0.00021351]
[1646645146929,0.4022,38311.0,38309.0,0.00021351]
[1646645147328,0.19930461,38310.0,38309.0,0.00021351]
[1646645147576,0.35,38311.0,38303.0,0.21315934]
[1646645147775,0.35,38311.0,38300.0,0.00782333]
[1646645147776,0.55150461,38310.0,38308.0,0.00021351]
[1646645147978,0.25150461,38310.0,38308.0,0.00021351]
[1646645148179,0.38700461,38310.0,38308.0,0.00021351]
[1646645148577,0.05972942,38309.0,38308.0,0.00021351]
[1646645148778,0.11192942,38309.0,38302.0,0.18613119]
[1646645149078,0.3,38308.0,38307.0,0.00021351]
[1646645149280,0.4522,38308.0,38307.0,0.00021351]
[1646645149686,0.4522,38308.0,38301.0,0.00085419]
[1646645149687,0.04978649,38303.0,38301.0,0.00085419]
[1646645149879,0.57764362,38302.0,38301.0,0.00085419]
[1646645150078,0.25150461,38302.0,38300.0,0.00782333]
[1646645150277,0.35150461,38302.0,38300.0,0.00782333]
[1646645150677,0.07201879,38301.0,38300.0,0.00782333]
[1646645150881,0.0522,38301.0,38300.0,0.00782333]
[1646645151078,0.3522,38301.0,38300.0,0.00782333]
[1646645151327,0.77123112,38301.0,38300.0,0.00782333]
[1646645152130,0.47123112,38301.0,38300.0,0.00782333]
[1646645152329,0.1522,38301.0,38300.0,0.00782333]
[1646645154437,0.4522,38301.0,38300.0,0.00782333]
[1646645154633,0.77123112,38301.0,38300.0,0.00701629]
[1646645155290,0.4522,38301.0,38300.0,0.00701629]
[1646645155489,0.61993492,38301.0,38300.0,0.00701629]
[1646645155689,0.4522,38301.0,38300.0,0.00701629]
[1646645156090,0.1522,38301.0,38300.0,0.00701629]
[1646645156592,0.4522,38301.0,38300.0,0.00701629]
[1646645156993,0.1522,38301.0,38300.0,0.00701629]
[1646645157689,0.4522,38301.0,38300.0,0.00701629]
[1646645157892,0.4522,38301.0,38299.0,0.00023682]
[1646645158096,0.3,38300.0,38299.0,0.00023682]
[1646645158291,0.72565,38300.0,38299.0,0.00023682]
[1646645158493,0.19930461,38293.0,38292.0,0.00021881]
[1646645158730,0.19930461,38293.0,38292.0,0.00116625]
[1646645159728,0.19930461,38293.0,38292.0,0.00021881]
[1646645159938,0.17130461,38293.0,38292.0,0.00021881]
[1646645160333,0.52130461,38293.0,38292.0,0.00021881]
[1646645160734,0.57350461,38293.0,38292.0,0.00021881]
[1646645162581,0.67350461,38293.0,38292.0,0.00021881]
[1646645163980,0.37350461,38293.0,38292.0,0.00021881]
[1646645165382,0.22350461,38293.0,38292.0,0.00021881]
[1646645165584,0.22130461,38293.0,38292.0,0.00021881]
[1646645166082,0.17130461,38293.0,38292.0,0.00021881]
[1646645166529,0.1395,38295.0,38292.0,0.21585269]
[1646645166731,0.025,38299.0,38293.0,0.3]
[1646645166926,0.17130461,38294.0,38292.0,0.21585269]
[1646645167328,0.025,38299.0,38295.0,0.25178147]
[1646645167727,0.0746761,38297.0,38295.0,0.25178147]
[1646645168226,0.0746761,38297.0,38295.0,0.25201116]
[1646645169226,0.1246761,38297.0,38295.0,0.25178147]
[1646645170274,0.1306761,38297.0,38295.0,0.25178147]
[1646645170676,0.1306761,38297.0,38295.0,0.24886147]
[1646645171474,0.1246761,38297.0,38295.0,0.24886147]
[1646645171674,0.1236761,38297.0,38295.0,0.24886147]
[1646645172380,0.049,38297.0,38295.0,0.24886147]
[1646645172576,0.024,38299.0,38295.0,0.24886147]
[1646645173732,0.06861102,38298.0,38295.0,0.24886147]
[1646645174129,0.1395,38296.0,38295.0,0.24886147]
[1646645174327,0.1395,38296.0,38295.0,0.24909117]
[1646645175328,0.1395,38296.0,38295.0,0.24886147]
[1646645176129,0.1445,38296.0,38295.0,0.24886147]
[1646645179879,0.1395,38296.0,38295.0,0.24886147]
[1646645182226,0.1445,38296.0,38295.0,0.24886147]
[1646645183625,0.1395,38296.0,38295.0,0.24886147]
[1646645184228,0.1455,38296.0,38295.0,0.24886147]
[1646645184628,0.006,38296.0,38295.0,0.54886147]
[1646645184828,0.006,38296.0,38295.0,0.24886147]
[1646645185091,0.0053,38296.0,38295.0,0.24886147]
[1646645185493,0.0557472,38300.0,38295.0,0.24886147]
[1646645186293,0.0557472,38300.0,38296.0,0.00022966]
[1646645187393,0.0557472,38300.0,38295.0,0.24886147]
[1646645187594,0.0557472,38300.0,38296.0,0.00021961]
[1646645188193,0.32151977,38300.0,38296.0,0.00021961]
[1646645188593,0.32151977,38300.0,38295.0,0.24886147]
[1646645188826,0.32151977,38300.0,38296.0,0.00021961]
[1646645189034,0.26577257,38299.0,38296.0,0.00021961]
[1646645189227,0.31577257,38299.0,38296.0,0.00021961]
[1646645189630,0.31577257,38299.0,38295.0,0.24886147]
[1646645189826,0.31577257,38299.0,38296.0,0.00021997]
[1646645190026,0.26577257,38298.0,38296.0,0.00021997]
[1646645190227,0.26577257,38299.0,38296.0,0.00021997]
[1646645190431,0.32151977,38300.0,38296.0,0.00021997]
[1646645190829,0.32151977,38300.0,38295.0,0.24886147]
[1646645191234,0.26577257,38299.0,38295.0,0.24886147]
[1646645191431,0.26577257,38299.0,38296.0,0.00023002]
[1646645192032,0.26577257,38299.0,38295.0,0.24886147]
[1646645192230,0.26577257,38299.0,38296.0,0.00023002]
[1646645193280,0.26577257,38299.0,38295.0,0.24886147]
[1646645193480,0.26577257,38299.0,38296.0,0.00022967]
[1646645193881,0.0557472,38300.0,38296.0,0.00022967]
[1646645193882,0.26577257,38298.0,38296.0,0.00022967]
[1646645194081,0.26577257,38297.0,38296.0,0.00022967]
[1646645194282,0.37218158,38298.0,38296.0,0.00022967]
[1646645194481,0.37218158,38298.0,38295.0,0.24886147]
[1646645194683,0.37218158,38297.0,38295.0,0.24909029]
[1646645195082,0.50484865,38297.0,38295.0,0.24909029]
[1646645195283,0.37218158,38297.0,38295.0,0.24909029]
[1646645195687,0.37218158,38297.0,38295.0,0.24886147]
[1646645196326,0.05,38298.0,38295.0,0.24886147]
[1646645196327,0.31923766,38296.0,38295.0,0.24886147]
[1646645199030,0.31923766,38297.0,38295.0,0.24886147]
[1646645199230,0.36923766,38297.0,38295.0,0.24886147]
[1646645200074,0.26602657,38296.0,38295.0,0.24886147]
[1646645200875,0.05,38297.0,38295.0,0.24886147]
[1646645200876,0.36923766,38297.0,38295.0,0.24886147]
[1646645201477,0.31923766,38298.0,38295.0,0.24886147]
[1646645201676,0.26602108,38296.0,38295.0,0.24886147]
[1646645202079,0.36923766,38297.0,38295.0,0.24886147]
[1646645202280,0.05,38297.0,38295.0,0.24886147]
[1646645202480,0.31602048,38297.0,38295.0,0.24886147]
[1646645202677,0.26602048,38297.0,38295.0,0.24886147]
[1646645203079,0.26602048,38296.0,38295.0,0.24886147]
[1646645203380,0.26601799,38296.0,38295.0,0.24120857]
[1646645203820,0.31601849,38297.0,38295.0,0.24120857]
[1646645206026,0.26604819,38296.0,38295.0,0.24120857]
[1646645206228,0.26604105,38296.0,38295.0,0.24120857]
[1646645206426,0.05,38297.0,38295.0,0.24120857]
[1646645206625,0.26604103,38296.0,38295.0,0.24120857]
[1646645206826,0.05,38297.0,38295.0,0.24120857]
[1646645207580,0.26603564,38297.0,38295.0,0.24120857]
[1646645207780,0.05,38297.0,38295.0,0.24120857]
[1646645207980,0.31603593,38297.0,38295.0,0.24120857]
[1646645208180,0.26603582,38297.0,38295.0,0.24120857]
[1646645208380,0.36923766,38299.0,38295.0,0.24120857]
[1646645208580,0.05,38297.0,38295.0,0.24120857]
[1646645208786,0.31603448,38297.0,38295.0,0.24120857]
[1646645208981,0.05,38297.0,38295.0,0.24120857]
[1646645209182,0.05,38297.0,38295.0,0.24145555]
[1646645209582,0.26607528,38296.0,38295.0,0.24145555]
[1646645209780,0.05,38297.0,38295.0,0.24145555]
[1646645209781,0.31923766,38297.0,38295.0,0.24145555]
[1646645210183,0.36923766,38298.0,38295.0,0.24120857]
[1646645210483,0.26607538,38296.0,38295.0,0.24120857]
[1646645210682,0.26607793,38296.0,38295.0,0.24120857]
[1646645210886,0.2660727,38297.0,38296.0,0.392636]
[1646645211087,0.37218158,38301.0,38298.0,0.96040531]
[1646645211088,0.31923766,38301.0,38298.0,0.96040531]
[1646645211333,0.78969267,38309.0,38299.0,0.418716]
[1646645211334,0.31923766,38302.0,38299.0,0.418716]
[1646645211532,0.31923766,38303.0,38299.0,0.418716]
[1646645211730,0.31923766,38304.0,38302.0,0.5904398]
[1646645211929,0.1395,38303.0,38302.0,0.1978038]
[1646645212329,0.1395,38303.0,38302.0,0.6165198]
[1646645212734,0.1395,38303.0,38302.0,1.0665198]
[1646645213529,0.1395,38303.0,38302.0,1.132293]
[1646645213934,0.16836545,38310.0,38304.0,0.02608]
[1646645214130,0.16836545,38310.0,38307.0,0.418716]
[1646645214331,0.16836545,38311.0,38309.0,0.392636]
[1646645214530,0.84330485,38312.0,38310.0,0.3]
[1646645214729,0.84330485,38312.0,38304.0,0.15]
[1646645214730,0.06676567,38308.0,38305.0,0.3]
[1646645214981,0.06676567,38308.0,38306.0,0.392636]
[1646645215784,0.06676567,38308.0,38305.0,0.30022825]
[1646645215985,0.06676567,38308.0,38305.0,0.00022825]
[1646645216181,0.06676567,38308.0,38296.0,0.15]
[1646645216383,0.06676567,38308.0,38299.0,0.00091309]
[1646645216384,0.2658597,38306.0,38299.0,0.00091309]